{"text_format":"1","workbook":"xlsx","n_sheets":13,"sheets":["1. Forside","2. Samlet prisloft","3. Driftsomkostninger","4. Historiske investeringer","5. Gennemførte investeringer","6. Korrektion investeringer","7. Planlagte investeringer","8. 1-1 omkostninger","9. Miljø- og servicemål","10. Klimatilpasning","11. Nettofinansielle poster","12. Over- eller underdækning","13. Kontrol med indtægtsrammen"],"not_rendered":{"charts":0,"images":0,"macros":1,"external_links":1,"defined_names":0,"comments":0,"pivot_tables":0},"unopened":[],"bounds":{"document_bytes":16777216,"sheet_cells":100000,"rows_first":2000,"rows_last":500,"rows_between":2000,"halvings":0,"cell_chars":16384,"cell_head_chars":4096},"cells_cut":0,"cells_raw":0,"read":"whole","date_system":"1900"}

{"sheet":"1. Forside","index":0,"n_rows":27,"n_cols":4,"rows_kept":27,"cut":false,"hidden":false,"merged":[[26,3,26,5],[25,3,25,5],[24,3,24,5],[23,3,23,5],[22,3,22,5],[21,3,21,5],[20,3,20,5],[19,3,19,5],[18,3,18,5],[7,3,7,5],[12,3,12,5],[15,3,15,5],[16,3,16,5],[17,3,17,5]]}
["Rebild Vand og Spildevand A/S (spildevand)"]
[]
[]
[]
[]
[]
[]
[null,null,null,"Bilag A"]
[]
[]
[]
[]
[null,null,null,"Indholdsfortegnelse"]
[]
[]
[null,null,"Fane nr. 2","Samlet prisloft "]
[null,null,"Fane nr. 3","Driftsomkostninger"]
[null,null,"Fane nr. 4","Historiske investeringer "]
[null,null,"Fane nr. 5","Gennemførte investeringer"]
[null,null,"Fane nr. 6","Korrektion investeringer"]
[null,null,"Fane nr. 7","Planlagte investeringer"]
[null,null,"Fane nr. 8","1:1 omkostninger"]
[null,null,"Fane nr. 9","Miljø- og servicemål"]
[null,null,"Fane nr. 10","Klimatilpasning"]
[null,null,"Fane nr. 11","Nettofinansielle poster"]
[null,null,"Fane nr. 12","Over- eller underdækning"]
[null,null,"Fane nr. 13","Kontrol med indtægtsrammen og oversigt over ekstraordinære effektiviseringsgevinster"]

{"sheet":"2. Samlet prisloft","index":1,"n_rows":38,"n_cols":6,"rows_kept":38,"cut":false,"hidden":false,"merged":[[3,1,3,5]]}
[{"$f":"'1. Forside'!A1","v":"Rebild Vand og Spildevand A/S (spildevand)"}]
[]
[]
[null,"Fane 2. Samlet prisloft for 2015"]
[]
[null,"Driftsomkostninger"]
[null,"Driftsomkostninger i prisloftet for 2014",{"$f":"'3. Driftsomkostninger'!C21","v":12328586.055},"kr."]
[null,"Bortfald af væsentlige omkostninger",{"$f":"-'3. Driftsomkostninger'!C17","v":0},"kr."]
[null,"Korrektion for prisudviklingen 2014-2015",{"$f":"'3. Driftsomkostninger'!C23","v":9862.8688440000005},"kr."]
[null,"Forhøjelse til effektivt niveau iht. benchmarkingen",{"$f":"'3. Driftsomkostninger'!C29","v":0},"kr."]
[null,"Korrektion for generelt effektiviseringskrav",{"$f":"-'3. Driftsomkostninger'!C35","v":-54245.778642000005},"kr."]
[null,"Korrektion for individuelt effektiviseringskrav",{"$f":"-'3. Driftsomkostninger'!C44","v":-382802.58556753275},"kr."]
[null,"Driftsomkostninger i alt",{"$f":"SUM(C7:C12)","v":11901400.559634468},"kr.",{"$f":"C13","v":11901400.559634468}," kr."]
[null,"Investeringer"]
[null,"Tillæg for historiske investeringer",{"$f":"'4. Historiske investeringer'!C9","v":32120344.188143466},"kr."]
[null,"Tillæg for gennemførte investeringer i 2011-2013",{"$f":"'5. Gennemførte investeringer'!F26","v":1779573.2294557821},"kr."]
[null,"Korrektion af tillæg for planlagte investeringer vedrørende 2013  ",{"$f":"'6. Korrektion investeringer'!C10","v":361988.19891156419},"kr."]
[null,"Tillæg for planlagte investeringer i 2014 og 2015",{"$f":"'7. Planlagte investeringer'!F62","v":1388166.6666666665},"kr."]
[null,"Investeringstillæg i alt",{"$f":"SUM(C15:C18)","v":35650072.283177473},"kr.",{"$f":"C19","v":35650072.283177473}," kr."]
[null,"Øvrige omkostninger mv."]
[null,"Tillæg for 1:1 omkostninger i 2015",{"$f":"'8. 1-1 omkostninger'!C11","v":4945000},"kr."]
[null,"Tillæg vedr. revisorerklæringer og DANVA/FVD-kontingent",{"$f":"'8. 1-1 omkostninger'!C19","v":83200},"kr."]
[null,"Korrektion ift. faktiske 1:1 omkostninger i 2013",{"$f":"'8. 1-1 omkostninger'!C25","v":-413048},"kr."]
[null,"Tillæg for driftsomkostninger til miljø- og servicemål i 2015",{"$f":"'9. Miljø- og servicemål'!C9","v":43500},"kr."]
[null,"Korrektion ift. faktiske driftsomkostninger til miljø- og servicemål i 2013",{"$f":"'9. Miljø- og servicemål'!C16","v":0},"kr."]
[null,"Tillæg for driftsomkostninger til medfinansiering af klimatilpasningsprojekter i 2015",{"$f":"'10. Klimatilpasning'!C9","v":0},"kr."]
[null,"Korrektion ift. faktiske omkostninger til medfinansiering af klimatilpasningsprojekter i 2013",{"$f":"'10. Klimatilpasning'!C16","v":0},"kr."]
[null,"Tillæg/fradrag for nettofinansielle poster i 2015",{"$f":"'11. Nettofinansielle poster'!C9","v":-107000},"kr."]
[null,"Korrektion ift. faktiske nettofinansielle poster i 2013",{"$f":"'11. Nettofinansielle poster'!C16","v":37956},"kr."]
[null,"Øvrige omkostninger mv. i alt",{"$f":"SUM(C21:C29)","v":4589608},"kr.",{"$f":"C30","v":4589608}," kr."]
[null,"Historisk over- eller underdækning"]
[null,"Tillæg/fradrag for over- eller underdækning til og med 2010",{"$f":"'12. Over- eller underdækning'!C11","v":-2637347.4444444445},"kr.",{"$f":"C32","v":-2637347.4444444445}," kr."]
[null,"Korrektion i forhold til tidligere indtægtsramme "]
[null,"Korrektion for overholdelse af indtægtsramme i prisloft 2013",{"$f":"'13. Kontrol med indtægtsrammen'!E27","v":7345723.637000002},"kr.",{"$f":"C34","v":7345723.637000002}," kr."]
[null,"Samlet prisloft"]
[null,"Indtægtsramme i 2015 ",null,null,{"$f":"SUM(E13:E34)","v":56849457.035367496}," kr."]
[null,"Debiteret vandmængde i 2013",null,null,1137079," m3"]
[null,"Prisloft 2015",null,null,{"$f":"E36/E37","v":49.996048678559269}," kr./m3"]

{"sheet":"3. Driftsomkostninger","index":2,"n_rows":44,"n_cols":4,"rows_kept":44,"cut":false,"hidden":false,"merged":[[3,1,3,3]]}
[{"$f":"'1. Forside'!A1","v":"Rebild Vand og Spildevand A/S (spildevand)"}]
[]
[]
[null,"Fane 3. Driftsomkostninger "]
[]
[null,"Driftsomkostningerne i prisloftet for 2014"]
[null,"Korrigerede driftsomkostninger i prisloftet for 2013 (DOiPL 2013)",13492187,"kr."]
[null,"Prisfremskrivning 1,5 pct.",{"$f":"0.015*SUM(C7:C7)","v":202382.80499999999},"kr."]
[null,"Generelt effektiviseringskrav (0 pct.)",0,"kr."]
[null,"Individuelt effektiviseringskrav ",-638787,"kr."]
[null,"Bortfald af midlertidigt tillæg  iht. § 8, stk. 5 (inkl. prisfremskrivning)",{"$f":"-1.015*716450","v":-727196.74999999988},"kr."]
[null,"Driftsomkostningerne i prisloftet for 2014 (DOiPL 2014)\n(korrigeret for bortfald af midlertidigt tillæg)",{"$f":"SUM(C7:C11)","v":12328586.055},"kr."]
[]
[]
[null,"Korrektion for forventet bortfald af væsentlige omkostninger"]
[null,"Selskabets indberettede bortfald af væsentlige omkostninger inden 2015",0,"kr."]
[null,"Korrektion for forventet bortfald ",{"$f":"SUM(C16:C16)","v":0},"kr."]
[]
[]
[null,"Korrektion for prisudviklingen fra 2014-2015"]
[null,"Driftsomkostningerne i prisloftet for 2014",{"$f":"C12-C17","v":12328586.055},"kr."]
[null,"Prisudvikling 2014 - 2015 ",0.08,"pct."]
[null,"Korrektion for prisudvikling",{"$f":"C21*(C22/100)","v":9862.8688440000005},"kr."]
[]
[]
[null,"Eventuel forhøjelse til effektivt niveau iht. benchmarkingen"]
[null,"Selskabets effektive driftsomkostninger iht. benchmarkingen",9150276.2965611219,"kr."]
[null,"Selskabets pristalskorrigerede driftsomkostninger i 2015-niveau",{"$f":"C21+C23","v":12338448.923844},"kr."]
[null,"Eventuel forhøjelse til effektivt niveau",{"$f":"IF(C28>C27,0,C27-C28)","v":0},"kr."]
[]
[]
[null,"Korrektion for generelt effektiviseringskrav"]
[null,"Driftsomkostningerne i prisloftet for 2014",{"$f":"C21","v":12328586.055},"kr. "]
[null,"Generelt effektiviseringskrav ",0.44,"pct."]
[null,"Endeligt generelt effektiviseringskrav",{"$f":"C33*(C34/100)","v":54245.778642000005},"kr. "]
[]
[]
[null,"Korrektion for individuelt effektiviseringskrav"]
[null,"Rå effektiviseringspotentiale",3284335.2268982525,"kr."]
[null,"Effektiviseringspotentiale efter eventuel korrektion for særlige forhold",3178309.3899938785,"kr."]
[null,"Effektiviseringspotentiale efter forsigtighedshensyn",1531210.342270131,"kr."]
[null,"Effektiviseringspotentiale efter eventuel korrektion for sammensætning af signifikante costdrivere",1531210.342270131,"kr. "]
[null,"Umiddelbart effektiviseringskrav",{"$f":"C42/4","v":382802.58556753275},"kr."]
[null,"Endeligt individuelt effektiviseringskrav",{"$f":"IF(C43>0.05*C21,0.05*C21,IF(C43<0.01*C21,0,C43))","v":382802.58556753275},"kr. "]

{"sheet":"4. Historiske investeringer","index":3,"n_rows":9,"n_cols":4,"rows_kept":9,"cut":false,"hidden":false,"merged":[[3,1,3,2]]}
[{"$f":"'3. Driftsomkostninger'!A1","v":"Rebild Vand og Spildevand A/S (spildevand)"}]
[]
[]
[null,"Fane 4. Historiske investeringer "]
[]
[null,"Tillæg for historiske investeringer "]
[null,"Værdi af selskabets materielle anlægsaktiver pr. 1. januar 2010",1459317440.515944,"kr."]
[null,"Den årlige standardafskrivning på de materielle anlægsaktiver iht. POLKA",32120344.188143466,"kr."]
[null,"Tillæg i alt i 2015",{"$f":"C8","v":32120344.188143466},"kr."]

{"sheet":"5. Gennemførte investeringer","index":4,"n_rows":26,"n_cols":7,"rows_kept":26,"cut":false,"hidden":false,"merged":[[3,1,3,5],[6,5,6,6]]}
[{"$f":"'4. Historiske investeringer'!A1","v":"Rebild Vand og Spildevand A/S (spildevand)"}]
[]
[]
[null,"Fane 5. Gennemførte investeringer i 2010 - 2013 "]
[]
[null,"Tillæg for gennemførte investeringer i 2013"]
[null," Beskrivelse af investeringen   ","Årstal ","Std. levetid (år)   "," Anskaffelses-pris (kr.)","Afskrivning "]
[null,"Ledningsnet = Ø 200 mm",2013,75,1643256,{"$f":"E8/D8","v":21910.080000000002},"kr."]
[null,"Ø 200 mm < Ledningsnet = Ø 500 mm",2013,75,6711564,{"$f":"E9/D9","v":89487.52},"kr."]
[null,"Ø 500 mm < Ledningsnet = Ø 800 mm",2013,75,558189,7442.52,"kr."]
[null,"Brønde",2013,75,8317088,110894.50666666667,"kr."]
[null,"Stik",2013,75,1370010,18266.8,"kr."]
[null,"Indløb-/udløbsarrangement",2013,75,30715,409.53333333333336,"kr."]
[null,"Jordbassin Klasse B",2013,50,760000,15200,"kr."]
[null,"Indløb-/udløbsarrangement",2013,75,33850,451.33333333333331,"kr."]
[null,"Ledningsnet = Ø 200 mm",2013,75,171357,2284.7600000000002,"kr."]
[null,"Arbejdsplads",2013,5,1266697,253339.4,"kr."]
[null,"Arbejdsplads",2013,5,181911,36382.199999999997,"kr."]
[null,"Pumpestationer m. overbygning (< 20 m2), Mek/EL",2013,20,1099364,54968.2,"kr."]
[null,"Pumpestationer m. overbygning (< 20 m2), SRO",2013,10,121886,12188.6,"kr."]
[null,"Oversvømmelseskort",2013,5,458026,91605.2,"kr."]
[null,"Jordbassin Klasse B",2013,49,22212,453.30612244897958,"kr."]
[null,"Pumpestationer m. overbygning (< 20 m2), Konstruktioner",2013,50,1085507,21710.14,"kr."]
[null,"Tillæg for 2013 ",null,null,null,{"$f":"SUM(F8:F23)","v":736994.0994557821},"kr."]
[null,"Tillæg for 2010 - 2012",null,null,null,1042579.1300000001,"kr."]
[null,"Samlet tillæg for gennemførte investeringer",null,null,null,{"$f":"F24+F25","v":1779573.2294557821},"kr."]

{"sheet":"6. Korrektion investeringer","index":5,"n_rows":10,"n_cols":4,"rows_kept":10,"cut":false,"hidden":false,"merged":[[3,1,3,3]]}
[{"$f":"'5. Gennemførte investeringer'!A1","v":"Rebild Vand og Spildevand A/S (spildevand)"}]
[]
[]
[null,"Fane 6. Korrektion af tillæg for planlagte investeringer"]
[]
[null,"Korrektion af tillæg for planlagte investeringer vedr. 2013"]
[null,"Tillæg for planlagte investeringer i 2013 i prisloft 2013",472000,"kr."]
[null,"Tillæg for planlagte investeringer i 2013 i prisloft 2014",640000,"kr."]
[null,"Selskabets faktiske afskrivninger på gennemførte investeringer i 2013",{"$f":"'5. Gennemførte investeringer'!F24","v":736994.0994557821},"kr."]
[null,"Korrektion af tillæg for planlagte investeringer vedr. 2013",{"$f":"C9-C7+C9-C8","v":361988.19891156419},"kr."]

{"sheet":"7. Planlagte investeringer","index":6,"n_rows":62,"n_cols":7,"rows_kept":62,"cut":false,"hidden":false,"merged":[[6,5,6,6],[3,1,3,6]]}
[{"$f":"'6. Korrektion investeringer'!A1","v":"Rebild Vand og Spildevand A/S (spildevand)"}]
[]
[]
[null,"Fane 7. Planlagte investeringer "]
[]
[null,"Tillæg for planlagte investeringer i 2014 og 2015"]
[null,"Beskrivelse af investeringen   ","Årstal ","Std. levetid (år)   ","Anskaffelses-pris (kr.)   ","Afskrivning"]
[null,"Ledningsnet = Ø 200 mm",2014,75,200000,{"$f":"E8/D8","v":2666.6666666666665},"kr."]
[null,"Ledningsnet = Ø 200 mm",2014,75,100000,{"$f":"E9/D9","v":1333.3333333333333},"kr."]
[null,"Jordbassin Klasse B",2014,50,100000,{"$f":"E10/D10","v":2000},"kr."]
[null,"Ledningsnet = Ø 200 mm",2014,75,100000,1333.3333333333333,"kr."]
[null,"Jordbassin Klasse B",2014,50,100000,2000,"kr."]
[null,"Ledningsnet = Ø 200 mm",2014,75,7250000,96666.666666666672,"kr."]
[null,"Jordbassin Klasse B",2014,50,750000,15000,"kr."]
[null,"Jordbassin Klasse B",2014,50,750000,15000,"kr."]
[null,"Ledningsnet = Ø 200 mm",2014,75,250000,3333.3333333333335,"kr."]
[null,"Ledningsnet = Ø 200 mm",2014,75,6500000,86666.666666666672,"kr."]
[null,"Jordbassin Klasse B",2014,50,1500000,30000,"kr."]
[null,"Jordbassin Klasse B",2014,50,1000000,20000,"kr."]
[null,"Ledningsnet = Ø 200 mm",2014,75,4000000,53333.333333333336,"kr."]
[null,"Pumpestationer m. overbygning (< 20 m2), Konstruktioner",2014,50,300000,6000,"kr."]
[null,"Pumpestationer m. overbygning (< 20 m2), SRO",2014,10,50000,5000,"kr."]
[null,"Pumpestationer m. overbygning (< 20 m2), Mek/EL",2014,20,650000,32500,"kr."]
[null,"Stik",2014,75,750000,10000,"kr."]
[null,"Ledningsnet = Ø 200 mm",2014,75,1500000,20000,"kr."]
[null,"Ledningsnet = Ø 200 mm",2014,75,3000000,40000,"kr."]
[null,"Ledningsnet = Ø 200 mm",2014,75,3500000,46666.666666666664,"kr."]
[null,"Pumpestationer m. overbygning (< 20 m2), Konstruktioner",2014,50,1500000,30000,"kr."]
[null,"Pumpestationer m. overbygning (< 20 m2), Mek/EL",2014,20,800000,40000,"kr."]
[null,"Pumpestationer m. overbygning (< 20 m2), SRO",2014,10,200000,20000,"kr."]
[null,"Ledningsnet = Ø 200 mm",2014,75,2000000,26666.666666666668,"kr."]
[null,"Pumpestationer m. overbygning (< 20 m2), Mek/EL",2014,20,2000000,100000,"kr."]
[null,"Ledningsnet = Ø 200 mm",2014,75,1800000,24000,"kr."]
[null,"Jordbassin Klasse B",2014,50,100000,2000,"kr."]
[null,"Pumpestationer i brønde (< 6,25 m2), Konstruktioner",2014,50,250000,5000,"kr."]
[null,"Pumpestationer i brønde (< 6,25 m2), Mek/EL",2014,20,50000,2500,"kr."]
[null,"Pumpestationer i brønde (< 6,25 m2), SRO",2014,10,50000,5000,"kr."]
[null,"Ledningsnet = Ø 200 mm",2014,75,2600000,34666.666666666664,"kr."]
[null,"Jordbassin Klasse B",2014,50,100000,2000,"kr."]
[null,"Ledningsnet = Ø 200 mm",2014,75,1000000,13333.333333333334,"kr."]
[null,"Jordbassin Klasse B",2014,50,100000,2000,"kr."]
[null,"Ledningsnet = Ø 200 mm",2014,75,550000,7333.333333333333,"kr."]
[null,"Stik",2015,75,750000,10000,"kr."]
[null,"Ledningsnet = Ø 200 mm",2015,75,1500000,20000,"kr."]
[null,"Ledningsnet = Ø 200 mm",2015,75,15000000,200000,"kr."]
[null,"Ledningsnet = Ø 200 mm",2015,75,2000000,26666.666666666668,"kr."]
[null,"Pumpestationer m. overbygning (< 20 m2), Mek/EL",2015,20,2000000,100000,"kr."]
[null,"Ledningsnet = Ø 200 mm",2015,75,1000000,13333.333333333334,"kr."]
[null,"Jordbassin Klasse B",2015,50,3000000,60000,"kr."]
[null,"Ledningsnet = Ø 200 mm",2015,75,1000000,13333.333333333334,"kr."]
[null,"Ledningsnet = Ø 200 mm",2015,75,2000000,26666.666666666668,"kr."]
[null,"Ledningsnet = Ø 200 mm",2015,75,750000,10000,"kr."]
[null,"Jordbassin Klasse B",2015,50,250000,5000,"kr."]
[null,"Ledningsnet = Ø 200 mm",2015,75,2000000,26666.666666666668,"kr."]
[null,"Ledningsnet = Ø 200 mm",2015,75,3000000,40000,"kr."]
[null,"Pumpestationer m. overbygning (< 20 m2), Konstruktioner",2015,50,250000,5000,"kr."]
[null,"Jordbassin Klasse B",2015,50,1000000,20000,"kr."]
[null,"Pumpestationer m. overbygning (< 20 m2), Mek/EL",2015,20,50000,2500,"kr."]
[null,"Pumpestationer m. overbygning (< 20 m2), SRO",2015,10,50000,5000,"kr."]
[null,"Tillæg for 2014",null,null,null,{"$f":"SUMIF(C8:C59,\"2014\",F8:F59)","v":804000},"kr."]
[null,"Tillæg for 2015",null,null,null,{"$f":"SUMIF(C8:C59,\"2015\",F8:F59)","v":584166.66666666663},"kr."]
[null,"Tillæg i alt",null,null,null,{"$f":"F60+F61","v":1388166.6666666665},"kr."]

{"sheet":"8. 1-1 omkostninger","index":7,"n_rows":25,"n_cols":4,"rows_kept":25,"cut":false,"hidden":false,"merged":[[3,1,3,3],[15,1,15,3],[21,1,21,3]]}
[{"$f":"'7. Planlagte investeringer'!A1","v":"Rebild Vand og Spildevand A/S (spildevand)"}]
[]
[]
[null,"Fane 8. 1:1 omkostninger"]
[]
[null,"Tillæg for budgetterede 1:1 omkostninger i 2015"]
[null,"Betaling til Forsyningssekretariatet",33000,"kr."]
[null,"Spildevandsafgift",180000,"kr."]
[null,"Køb af varer og tjenesteydelser hos et andet prisloftreguleret vandselskab",4700000,"kr."]
[null,"Ejendomsskatter",32000,"kr."]
[null,"Tillæg i alt ",{"$f":"SUM(C7:C10)","v":4945000},"kr."]
[]
[]
[]
[]
[null,"Tillæg for budgetterede nødvendige udgifter til revisorerklæringer samt ordinært medlemskab af DANVA og FVD i 2015"]
[null,"Betaling for ordinært medlemskab af DANVA/FVD",28200,"kr."]
[null,"Betaling for revisorerklæringer",55000,"kr."]
[null,"Tillæg i alt ",{"$f":"SUM(C17:C18)","v":83200},"kr."]
[]
[]
[null,"Korrektion af tillæg for faktiske 1:1 omkostninger (inkl. revisorerklæringer og ordinært medlemskab af DANVA/FVD) i 2013"]
[null,"Selskabets faktiske 1:1 omkostninger mv. i 2013, jf. reguleringsregnskabet",4787202,"kr."]
[null,"Tillæg for budgetterede 1:1 omkostninger mv. i prisloft 2013",5200250,"kr."]
[null,"Korrektion af tillæg for budgetterede 1:1 omkostninger mv. i 2013",{"$f":"C23-C24","v":-413048},"kr."]

{"sheet":"9. Miljø- og servicemål","index":8,"n_rows":16,"n_cols":4,"rows_kept":16,"cut":false,"hidden":false,"merged":[[3,1,3,3]]}
[{"$f":"'8. 1-1 omkostninger'!A1","v":"Rebild Vand og Spildevand A/S (spildevand)"}]
[]
[]
[null,"Fane 9. Driftsomkostninger til miljø- og servicemål "]
[]
[null,"Tillæg for budgetterede driftsomkostninger til miljø- og servicemål i 2015"]
[null,"SMS-service",43500,"kr."]
[null,"Svovlbrintebekæmpelse",0,"kr."]
[null,"Tillæg i alt",{"$f":"SUM(C7:C7)","v":43500},"kr."]
[]
[]
[]
[null,"Korrektion af tillæg for faktiske driftsomkostninger til miljø- og servicemål i 2013"]
[null,"Selskabets faktiske driftsomkostninger til miljø- og servicemål i 2013, jf. reguleringsregnskabet",0,"kr."]
[null,"Tillæg for budgetterede driftsomkostninger til miljø- og servicemål i prisloft 2013",0,"kr."]
[null,"Korrektion af tillæg for budgetterede driftsomkostninger til miljø- og servicemål i 2013",{"$f":"C14-C15","v":0},"kr."]

{"sheet":"10. Klimatilpasning","index":9,"n_rows":16,"n_cols":4,"rows_kept":16,"cut":false,"hidden":false,"merged":[[3,1,3,3],[12,1,12,3],[6,1,6,3]]}
[{"$f":"'9. Miljø- og servicemål'!A1","v":"Rebild Vand og Spildevand A/S (spildevand)"}]
[]
[]
[null,"Fane 10. Medfinansiering af klimatilpasningsprojekter"]
[]
[]
[null,"Tillæg for budgetterede omkostninger til medfinansiering af klimatilpasningsprojekter i 2015"]
[null,null,0,"kr."]
[null,"Tillæg i alt",{"$f":" SUM(C8:C8)","v":0},"kr."]
[]
[]
[]
[null,"Korrektion af tillæg for faktiske omkostninger til medfinansiering af klimatilpasningsprojekter i 2013"]
[null,"Selskabets faktiske driftsomkostninger til klimatilpasningsprojekter i 2013, jf. reguleringsregnskabet",0,"kr."]
[null,"Tillæg for budgetterede driftsomkostninger til klimatilpasningsprojekter i prisloft 2013",0,"kr."]
[null,"Korrektion af tillæg for budgetterede omkostninger til klimatilpasningsprojekter i 2013",{"$f":"C14-C15","v":0},"kr."]

{"sheet":"11. Nettofinansielle poster","index":10,"n_rows":16,"n_cols":4,"rows_kept":16,"cut":false,"hidden":false,"merged":[[3,1,3,3]]}
[{"$f":"'10. Klimatilpasning'!A1","v":"Rebild Vand og Spildevand A/S (spildevand)"}]
[]
[]
[null,"Fane 11. Nettofinansielle poster"]
[]
[null,"Tillæg for budgetterede nettofinansielle poster i 2015"]
[null,"Budgetterede renteudgifter og gebyrer i 2015",643000,"kr."]
[null,"Budgetterede renteindtægter i 2015",750000,"kr."]
[null,"Tillæg/fradrag i alt",{"$f":"C7-C8","v":-107000},"kr."]
[]
[]
[]
[null,"Korrektion af tillæg for faktiske nettofinansielle poster i 2013"]
[null,"Selskabets faktiske nettofinansielle poster i 2013, jf. reguleringsregnskabet",{"$f":"[1]!'!Ark2!R35C31'","v":-812044},"kr."]
[null,"Tillæg for budgetterede nettofinansielle poster i prisloft 2013",-850000,"kr."]
[null,"Korrektion af tillæg for budgetterede nettofinansielle poster i 2013",{"$f":"C14-C15","v":37956},"kr."]

{"sheet":"12. Over- eller underdækning","index":11,"n_rows":11,"n_cols":4,"rows_kept":11,"cut":false,"hidden":false,"merged":[[3,1,3,3]]}
[{"$f":"'11. Nettofinansielle poster'!A1","v":"Rebild Vand og Spildevand A/S (spildevand)"}]
[]
[]
[null,"Fane 12. Over- eller underdækning til og med 2010"]
[]
[null,"Tillæg/fradrag for over- eller underdækning til og med 2010"]
[null,"Opgjort over- eller underdækning per 31. december 2010",-25920000,"kr."]
[null,"Heraf beløb indregnet i prislofterne for 2011 - 2014",-10095915.333333334,"kr."]
[null,"Endnu ikke indregnet over- eller underdækning",{"$f":"C7-C8","v":-15824084.666666666},"kr."]
[null,"Resterende indregningsperiode (fastsat i prisloftet for 2012)",6,"år"]
[null,"Tillæg/fradrag i alt",{"$f":"IF(C7=0,0,C9/C10)","v":-2637347.4444444445},"kr."]

{"sheet":"13. Kontrol med indtægtsrammen","index":12,"n_rows":38,"n_cols":12,"rows_kept":38,"cut":false,"hidden":false,"merged":[[3,1,3,5],[30,1,30,4],[5,1,5,5]]}
[{"$f":"'12. Over- eller underdækning'!A1","v":"Rebild Vand og Spildevand A/S (spildevand)"}]
[]
[]
[null,"Fane 13. Korrektion for overholdelse af indtægtsrammen i prisloftet for 2013"]
[]
[null,"Samlet opgørelse vedrørende overholdelse af indtægtsrammen i prisloftet for 2013"]
[null,"Indtægtsramme i prisloftet for 2013",null,null,50057979.577548526,"kr."]
[null,"Ikke anvendt likviditet vedrørende investeringer i 2013"]
[null,"Tillæg for historiske investeringer ",32232072.940548524,"kr."]
[null,"Tillæg for gennemførte investeringer i 2011",981260,"kr."]
[null,"Korrektion af tillæg for planlagte investeringer i 2011",486063,"kr."]
[null,"Tillæg for planlagte investeringer i 2012 og 2013",1130000,"kr."]
[null,"Indtægter fra tilslutningsbidrag",2309030,"kr."]
[null,"Indtægter fra salg af anlægsaktiver",0,"kr."]
[null,"Erstatninger vedr. anlægsaktiver mv.",0,"kr."]
[null,"Ekstraordinær effektiviseringsgevinst anvendt til investeringer",0,"kr."]
[null,"Udgifter til investeringer",-33621740,"kr."]
[null,"Ikke anvendt likviditet vedr. investeringer i alt",{"$f":"SUM(C9:C17)","v":3516685.9405485243},"kr.",{"$f":"IF(C18<0,0,-C18)","v":-3516685.9405485243},"kr."]
[null,"Ekstraordinære effektiviseringsgevinster anvendt til takstnedsættelse"]
[null,"Ekstraordinær effektiviseringsgevinst anvendt til takstnedsættelse",0,"kr.",{"$f":"-C20","v":0},"kr."]
[null,"Korrektion af ikke opkrævet tillæg fra 2011 i prisloft 2013"]
[null,"Korrektion af ikke opkrævet tillæg fra 2011 i prisloft 2013",0,"kr.",{"$f":"-C22","v":0},"kr."]
[null,"Indtægter fra primære aktiviteter mv."]
[null,"Indtægter fra kubikmetertakster, faste takster, særbidrag, målergebyrer samt andre takster og gebyrer",39086360,"kr."]
[null,"Andre indtægter i prisloftåret, som selskabet har opnået i forbindelse med eller som følge af selskabets primære aktiviteter",109210,"kr."]
[null,"Indtægter fra primære aktiviteter mv. i alt",{"$f":"SUM(C24:C25)","v":39195570},"kr.",{"$f":"-C26","v":-39195570},"kr."]
[null,"Tillæg/fradrag i prisloftet for 2015 i alt",null,null,{"$f":"E7+E18+E20+E22+E26","v":7345723.637000002},"kr."]
[]
[]
[]
[null,"Oversigt over ekstraordinære effektiviseringsgevinster"]
[]
[null,null,2012,null,2013,null,2014,null,2015,null,2016]
[null,"Indhentet ekstraordinær effektiviseringsgevinst",0,"kr.",1167081,"kr.",null,"kr.",null,"kr.",null,"kr."]
[null,"Gevinst anvendt til investeringer",0,"kr.",0,"kr.",null,"kr.",null,"kr.",null,"kr."]
[null,"Gevinst anvendt til takstnedsættelse",0,"kr.",0,"kr.",null,"kr.",null,"kr.",null,"kr."]
[null,"Korrektion for  effektiviseringsgevinst der ikke er anvendt inden 4 år",0,"kr.",0,"kr.",null,"kr.",null,"kr.",{"$f":"IF(C38>SUM(E35:I36),C38-SUM(E35:I36),0)*-1","v":0},"kr."]
[null,"Resterende gevinst",{"$f":"C34-C35-C36","v":0},"kr.",{"$f":"C38+E34-E35-E36","v":1167081},"kr.",{"$f":"E38+G34-G35-G36","v":1167081},"kr.",{"$f":"G38+I34-I35-I36","v":1167081},"kr.",{"$f":"I38+K34-K35-K36+K37","v":1167081},"kr."]